Cogmind - Beta 10.2 @@@ ROGUE MODE // 2021.08.12 @ 16:52:22 Player: thingamajigger Result: Self-destructed Performance ------------- Evolutions (3) 1500 Regions Visited (8) 1600 Robots Destroyed (72) 360 Value Destroyed (1686) 1686 Prototype IDs (31) 620 Alien Tech Used (0) 0 Bonus (456) 456 TOTAL SCORE: 6222 Bonus ------- High Alert Combat Kills 11 Follower Combat Kills 145 Aligned with FarCom 300 Cogmind --------- Core Integrity 700/700 Matter 280/300 Energy 280/280 System Corruption 0% Temperature Cool (0) Movement Treading (175) Ox1 Location -7/Factory Parts ------- > --- POWER (1) -------- Cooled Ion Engine > --- PROPULSION (3) --- Light Treads Improved Treads Advanced Treads > --- UTILITY (5) ------ High-capacity Storage Unit High-capacity Storage Unit High-capacity Storage Unit Kinecellerator Improved Medium Armor Plating > --- WEAPON (4) ------- Autogun Improved Assault Rifle Improved Assault Rifle Improved Assault Rifle > --- INVENTORY (28) --- Heavy Ion Engine Armored Treads Advanced Treads Advanced Treads Advanced Treads Advanced Treads Medium Treads Lightpack 2.0 High-capacity Matter Pod (200) High-capacity Matter Pod (200) Experimental Sensor Array Advanced Signal Interpreter Weapon Cycler Medium Armor Plating Medium Reactive Plating Improved Shield Generator Chronowheel Guided Plasma Cannon Improved Assault Rifle Improved Assault Rifle Minigun Heavy Battle Rifle Mini Grenade Launcher Mini Grenade Launcher Power Maul Peak State ------------ > --- POWER ------------ Cooled Ion Engine > --- PROPULSION ------- Light Treads Improved Treads Advanced Treads > --- UTILITY ---------- High-capacity Storage Unit High-capacity Storage Unit High-capacity Storage Unit Kinecellerator Improved Medium Armor Plating > --- WEAPON ----------- Autogun Improved Assault Rifle Improved Assault Rifle Improved Assault Rifle > --- INVENTORY -------- Heavy Ion Engine Armored Treads Advanced Treads Advanced Treads Advanced Treads Advanced Treads Medium Treads Lightpack 2.0 High-capacity Matter Pod High-capacity Matter Pod Experimental Sensor Array Advanced Signal Interpreter Weapon Cycler Medium Armor Plating Medium Reactive Plating Improved Shield Generator Chronowheel Guided Plasma Cannon Improved Assault Rifle Improved Assault Rifle Minigun Heavy Battle Rifle Mini Grenade Launcher Mini Grenade Launcher Power Maul [Rating: 41] Favorites ----------- Power Ion Engine Engine Ion Engine Propulsion Light Treads Treads Light Treads Utility High-capacity Storage Unit Device Kinecellerator Storage High-capacity Storage Unit Processor Improved Signal Interpreter Protection Hardened Light Armor Plating Weapon Improved Assault Rifle Energy Gun Electrolaser Ballistic Gun Improved Assault Rifle Launcher Mini Grenade Launcher Impact Weapon Power Maul Build | -11 -10 -10 -9 -9 -9 -8 -8 -7 ------- Run | Scr Mat Min Mat Min Exi Min Mat Fac Slots Evolved 6 | . . . 2 . . . 2 2 Power . | . . . . . . . . . Propulsion 1 | . . . . . . . . 1 Utility 3 | . . . 1 . . . 2 . Weapon 2 | . . . 1 . . . . 1 Parts Attached 58 | 6 6 . 31 7 2 . 4 2 Power 4 | 1 . . 3 . . . . . Engine 4 | 1 . . 3 . . . . . Core . | . . . . . . . . . Reactor . | . . . . . . . . . Propulsion 17 | 2 . . 11 3 . . . 1 Treads 17 | 2 . . 11 3 . . . 1 Leg . | . . . . . . . . . Wheel . | . . . . . . . . . Hover . | . . . . . . . . . Flight . | . . . . . . . . . Utility 18 | 1 6 . 4 3 2 . 2 . Device 1 | . . . . . . . 1 . Storage 10 | 1 5 . 1 1 2 . . . Processor 1 | . . . . 1 . . . . Hackware . | . . . . . . . . . Protection 6 | . 1 . 3 1 . . 1 . Artifact . | . . . . . . . . . Weapon 19 | 2 . . 13 1 . . 2 1 Energy Gun 1 | . . . 1 . . . . . Energy Cannon . | . . . . . . . . . Ballistic Gun 16 | 2 . . 11 1 . . 1 1 Ballistic Cannon . | . . . . . . . . . Launcher 1 | . . . 1 . . . . . Special Weapon . | . . . . . . . . . Impact Weapon 1 | . . . . . . . 1 . Slashing Weapon . | . . . . . . . . . Piercing Weapon . | . . . . . . . . . Special Melee Weapon . | . . . . . . . . . Unidentified Prototypes 3 | . . . 3 . . . . . Parts Lost 2 | . . . 2 . . . . . Power . | . . . . . . . . . Propulsion . | . . . . . . . . . Utility . | . . . . . . . . . Weapon 2 | . . . 2 . . . . . Highest Loss Streak 1 | . . . 1 . . . . . Average Slot Usage (%) 98 | . 97 100 99 100 90 100 100 100 Engine 11 | . 14 14 11 11 11 11 9 7 Treads 23 | . 28 28 21 22 22 22 18 23 Storage 24 | . 24 28 22 23 24 33 27 23 Protection 5 | . 1 . 11 9 . . 9 7 Ballistic Gun 29 | . 28 28 30 33 33 33 25 30 Naked Turns . | . . . . . . . . . Heaviest Build 127 | 12 56 56 72 81 113 113 124 127 Greatest Support 65 | 40 40 40 40 45 45 45 45 65 Greatest Overweight (x) 3 | . 1 1 3 1 2 2 2 1 Average Overweight (x) . | . . 1 1 1 1 2 2 1 Largest Inventory Capacity 28 | 6 18 18 18 24 28 28 28 28 Average Capacity 18 | 5 13 18 18 18 19 28 28 28 Most Carried 28 | 1 13 18 18 24 28 28 28 27 Average Carried 16 | . 9 17 17 18 12 28 27 26 Final Capacity 28 | 6 18 18 18 24 28 28 28 28 Final Carried 28 | 1 13 18 18 24 28 28 28 26 Class Distribution -------------------- 39% | Tank 36% | Mutant 9% | Hauler-Gunner 6% | Hauler-Skirmisher 6% | Gunner Dominant Class ---------------- Mutant | -10/Materials Mutant | -10/Mines Tank | -9/Materials Tank | -9/Mines Hauler-Gunner | -9/Exiles Hauler-Skirmisher | -8/Mines Hauler-Skirmisher | -8/Materials Hauler-Gunner | -7/Factory Resources | -11 -10 -10 -9 -9 -9 -8 -8 -7 ----------- Run | Scr Mat Min Mat Min Exi Min Mat Fac Matter Collected 2174 | 264 280 104 983 195 40 108 200 . Remotely . | . . . . . . . . . Salvage Created 2659 | 87 634 . 1437 56 . 170 275 . Parts 176 | . 41 . 102 7 . 10 16 . Haulers Intercepted 7 | . 2 . 5 . . . . . Recyclers Shooed 2 | . 2 . . . . . . . Parts Field Recycled . | . . . . . . . . . Retrieved Matter . | . . . . . . . . . Parts Self-Destructed . | . . . . . . . . . Prevented . | . . . . . . . . . Kills | -11 -10 -10 -9 -9 -9 -8 -8 -7 ------- Run | Scr Mat Min Mat Min Exi Min Mat Fac Combat Hostiles Destroyed 50 | . 12 . 24 4 . 3 7 . Guns 50 | . 12 . 24 4 . 3 7 . Classes Destroyed 11 | 1 5 . 3 . . 1 1 . Worker 2 | . . . 2 . . . . . Builder 3 | . 2 . 1 . . . . . Hauler 7 | . 2 . 5 . . . . . Recycler 3 | 1 1 . 1 . . . . . Operator 1 | . . . 1 . . . . . Watcher 6 | . 1 . 5 . . . . . Swarmer 17 | . 3 . 7 4 . . 3 . Grunt 22 | . 9 . 9 . . 2 2 . Brawler 1 | . . . . . . 1 . . Sentry 9 | . . . 8 . . . 1 . Hunter 1 | . . . . . . . 1 . Best Kill Streak 6 | 1 4 . 6 4 . 3 3 . Combat Bots Only 5 | . 3 . 5 4 . 3 3 . Max Kills in Single Turn 2 | 1 2 . 2 2 . 1 2 . Gunslinging 1 | . . . 1 1 . . 1 . Exploded . | . . . . . . . . . Melee . | . . . . . . . . . Uniques/NPCs Destroyed . | . . . . . . . . . Combat | -11 -10 -10 -9 -9 -9 -8 -8 -7 -------- Run | Scr Mat Min Mat Min Exi Min Mat Fac Damage Taken 1920 | . 496 37 847 39 . 178 323 . Core 214 | . 76 9 86 . . 33 10 . Absorbed by Shields . | . . . . . . . . . Core Remaining (%) 83 | 100 . 66 . . . 70 98 . Volleys Fired 158 | 1 55 1 72 5 . 8 16 . Largest 3 | 2 2 2 3 3 . 3 3 . Hottest 106 | 40 40 40 106 71 . 71 69 . Shots Fired 410 | 2 110 2 209 15 . 24 48 . Gun 409 | 2 110 2 208 15 . 24 48 . Cannon . | . . . . . . . . . Launcher 1 | . . . 1 . . . . . Special . | . . . . . . . . . Kinetic 402 | 2 110 2 201 15 . 24 48 . Thermal 7 | . . . 7 . . . . . Explosive 1 | . . . 1 . . . . . Electromagnetic . | . . . . . . . . . Robot Hit Streak 25 | 1 8 6 25 7 . 7 11 . Robot Miss Streak 6 | 1 2 . 6 2 . 3 1 . Penetration Max . | . . . . . . . . . Secondary Targets 10 | . 1 . 2 3 . 2 2 . Max Gunslinging Chain 2 | . 1 . 1 2 . 1 1 . Shots Hit Robots 273 | 1 72 2 138 11 . 14 35 . Core Hits 115 | 2 31 1 59 4 . 6 12 . Critical Hits . | . . . . . . . . . Critical Kills . | . . . . . . . . . Critical Parts Destroyed . | . . . . . . . . . Melee Attacks 3 | . . . . . . . 3 . Impact 3 | . . . . . . . 3 . Slashing . | . . . . . . . . . Piercing . | . . . . . . . . . Sneak Attacks . | . . . . . . . . . Combat Hostiles . | . . . . . . . . . Follow-up Attacks . | . . . . . . . . . Damage Inflicted 3662 | 17 796 18 1985 164 . 174 508 . Guns 3662 | 17 796 18 1985 164 . 174 508 . Cannons . | . . . . . . . . . Explosions . | . . . . . . . . . Melee . | . . . . . . . . . Ramming . | . . . . . . . . . Kinetic 3593 | 17 796 18 1916 164 . 174 508 . Thermal 69 | . . . 69 . . . . . Explosive . | . . . . . . . . . Electromagnetic . | . . . . . . . . . Impact . | . . . . . . . . . Slashing . | . . . . . . . . . Piercing . | . . . . . . . . . Highest Corruption . | . . . . . . . . . Average Corruption . | . . . . . . . . . Corruption Purged . | . . . . . . . . . Overload Shots . | . . . . . . . . . Overflow Damage . | . . . . . . . . . Projectiles . | . . . . . . . . . Explosions . | . . . . . . . . . Melee . | . . . . . . . . . Knockbacks . | . . . . . . . . . Impact . | . . . . . . . . . Kinetic . | . . . . . . . . . Secondary . | . . . . . . . . . Self-Inflicted Damage . | . . . . . . . . . Shots . | . . . . . . . . . Rammed . | . . . . . . . . . Targets Rammed . | . . . . . . . . . Kicked . | . . . . . . . . . Crushed . | . . . . . . . . . Highest Temperature 265 | . 22 . 265 58 . 109 36 . Average Temperature 31 | . 7 . 35 23 . 52 17 . Received Heat Transfer 609 | . 237 . 195 6 . 99 72 . Siege Activations . | . . . . . . . . . Robots Corrupted . | . . . . . . . . . Combat Hostiles . | . . . . . . . . . Parts Fried . | . . . . . . . . . Impact Corruptions . | . . . . . . . . . Robots Melted . | . . . . . . . . . Combat Hostiles . | . . . . . . . . . Parts Melted 1 | . . . 1 . . . . . Heat Transferred 148 | . . . 148 . . . . . Parts Sabotaged . | . . . . . . . . . Parts Stolen . | . . . . . . . . . Parts Stripped . | . . . . . . . . . Power Chain Reactions . | . . . . . . . . . Missiles Intercepted . | . . . . . . . . . Alert | -11 -10 -10 -9 -9 -9 -8 -8 -7 ------- Run | Scr Mat Min Mat Min Exi Min Mat Fac Peak Influence 433 | 5 192 38 433 273 . 70 257 25 Initial 168 | . 3 . . 168 . . 27 25 Average 109 | 2 86 2 206 69 . 59 111 25 Maximum Alert Level 2 | . . . 2 1 . . 1 . Low Security (%) 78 | 100 100 100 44 97 . 100 71 100 Level 1 19 | . . . 48 2 . . 28 . Level 2 2 | . . . 7 . . . . . Level 3 . | . . . . . . . . . Level 4 . | . . . . . . . . . Level 5 . | . . . . . . . . . High Security . | . . . . . . . . . Max Security . | . . . . . . . . . Squads Dispatched 6 | . 2 . 2 1 . . 1 . Investigation 1 | . . . . 1 . . . . Extermination . | . . . . . . . . . Reinforcement 5 | . 2 . 2 . . . 1 . Assault . | . . . . . . . . . Garrison . | . . . . . . . . . Intercept . | . . . . . . . . . Construction Impeded . | . . . . . . . . . Haulers Reinforced . | . . . . . . . . . Stealth | -11 -10 -10 -9 -9 -9 -8 -8 -7 --------- Run | Scr Mat Min Mat Min Exi Min Mat Fac Distress Signals 8 | . 2 . 5 . . . 1 . Communications Jammed . | . . . . . . . . . Distress Signals . | . . . . . . . . . Times Spotted 96 | . 21 11 42 7 . 3 12 . Peak Tracking Total 8 | . 4 8 6 4 . 3 4 . Tactical Retreats 3 | . 1 1 1 . . . . . Traps | -11 -10 -10 -9 -9 -9 -8 -8 -7 ------- Run | Scr Mat Min Mat Min Exi Min Mat Fac Traps Triggered 2 | . 1 1 . . . . . . Indirectly . | . . . . . . . . . Trap Hack Attempts . | . . . . . . . . . Triggered . | . . . . . . . . . Disarmed . | . . . . . . . . . Reprogrammed . | . . . . . . . . . Reused . | . . . . . . . . . Traps Extracted . | . . . . . . . . . Installed . | . . . . . . . . . Triggered . | . . . . . . . . . Machines | -11 -10 -10 -9 -9 -9 -8 -8 -7 ---------- Run | Scr Mat Min Mat Min Exi Min Mat Fac Machines Disabled 4 | . . 1 2 1 . . . . Max in Single Turn 1 | . . . 1 1 . . . . Machines Sabotaged . | . . . . . . . . . Garrisons Compromised . | . . . . . . . . . Overloaded Fab Kills . | . . . . . . . . . Fab Network Shutdowns . | . . . . . . . . . Hacking | -11 -10 -10 -9 -9 -9 -8 -8 -7 --------- Run | Scr Mat Min Mat Min Exi Min Mat Fac Machines Accessed 16 | . 4 1 4 2 2 . 2 1 Terminals 11 | . 4 . 4 1 . . 2 . Fabricators . | . . . . . . . . . Repair Stations . | . . . . . . . . . Recycling Units . | . . . . . . . . . Scanalyzers . | . . . . . . . . . Garrison Access 1 | . . . . . . . . 1 Total Hacks 36 | . 10 1 8 4 2 . 9 2 Successful 17 | . 4 1 3 2 2 . 5 . Failed 18 | . 5 . 5 2 . . 4 2 Catastrophic 1 | . 1 . . . . . . . Database Lockouts 1 | . 1 . . . . . . . Manual 28 | . 11 . 5 3 1 . 8 . Terminals 30 | . 10 . 8 3 . . 9 . Fabricators . | . . . . . . . . . Repair Stations . | . . . . . . . . . Recycling Units . | . . . . . . . . . Scanalyzers . | . . . . . . . . . Garrison Access 2 | . . . . . . . . 2 Terminal Hacks 11 | . 2 1 2 2 2 . 2 . Record 1 | . . . . . 1 . . . Robot Analysis 1 | . 1 . . . . . . . Prototype ID Bank 2 | . . . 1 . . . 1 . Open Door 2 | . . 1 . 1 . . . . Terminal Index 3 | . 1 . 1 . . . 1 . Unreport Threat 1 | . . . . 1 . . . . EX-Prototype ID Bank 1 | . . . . . 1 . . . Fabricator Hacks . | . . . . . . . . . Repair Station Hacks . | . . . . . . . . . Recycling Unit Hacks . | . . . . . . . . . Scanalyzer . | . . . . . . . . . Garrison Access Hacks . | . . . . . . . . . Unauthorized Hacks 6 | . 2 . 1 . . . 3 . Terminals 6 | . 2 . 1 . . . 3 . Track 1 | . . . . . . . 1 . Assimilate 1 | . 1 . . . . . . . Botnet 1 | . . . . . . . 1 . Operators 3 | . 1 . 1 . . . 1 . Fabricators . | . . . . . . . . . Repair Stations . | . . . . . . . . . Recycling Units . | . . . . . . . . . Scanalyzers . | . . . . . . . . . Garrison Access . | . . . . . . . . . Data Cores Recovered . | . . . . . . . . . Used . | . . . . . . . . . Hacking Detections 9 | . 2 . 4 . . . 2 1 Full Trace Events . | . . . . . . . . . Feedback Events . | . . . . . . . . . Feedback Blocked . | . . . . . . . . . Robot Schematics Acquired . | . . . . . . . . . Robots Built . | . . . . . . . . . Matter . | . . . . . . . . . Time . | . . . . . . . . . Total Robot Build Rating . | . . . . . . . . . Part Schematics Acquired . | . . . . . . . . . Parts Built . | . . . . . . . . . Matter . | . . . . . . . . . Time . | . . . . . . . . . Total Part Build Rating . | . . . . . . . . . Parts Repaired . | . . . . . . . . . Time . | . . . . . . . . . Parts Recycled . | . . . . . . . . . Recycled Matter . | . . . . . . . . . Retrieved Matter . | . . . . . . . . . Retrieved Components . | . . . . . . . . . Parts Scanalyzed . | . . . . . . . . . Part Schematics Acquired . | . . . . . . . . . Parts Damaged . | . . . . . . . . . Bothacking | -11 -10 -10 -9 -9 -9 -8 -8 -7 ------------ Run | Scr Mat Min Mat Min Exi Min Mat Fac Used RIF Installer . | . . . . . . . . . Robots Hacked . | . . . . . . . . . Non-combat . | . . . . . . . . . Combat . | . . . . . . . . . Robot Hacks Applied . | . . . . . . . . . Relay Couplers Released . | . . . . . . . . . Robots Rewired . | . . . . . . . . . Allies Hacked . | . . . . . . . . . Hacks Repelled . | . . . . . . . . . Allies | -11 -10 -10 -9 -9 -9 -8 -8 -7 -------- Run | Scr Mat Min Mat Min Exi Min Mat Fac Total Allies 5 | . . 3 . 2 . . . . Largest Group 3 | . . 3 3 2 1 . . . Highest-Rated Group 41 | . . 40 40 41 31 . . . Highest-Rated Ally 31 | . . 16 16 31 31 . . . Total Orders 1 | . . . 1 . . . . . STAY 1 | . . . 1 . . . . . Ally Attacks 38 | . . 7 26 5 . . . . Total Damage 438 | . . 71 261 106 . . . . Kills 7 | . . 1 5 1 . . . . Allies Corrupted . | . . . . . . . . . Allies Melted . | . . . . . . . . . Intel | -11 -10 -10 -9 -9 -9 -8 -8 -7 ------- Run | Scr Mat Min Mat Min Exi Min Mat Fac Robot Analysis Total 1 | . 1 . . . . . . . Derelict Logs Recovered 3 | . . 1 . 2 . . . . Drone Launches . | . . . . . . . . . Drone Recoveries . | . . . . . . . . . Exploration | -11 -10 -10 -9 -9 -9 -8 -8 -7 ------------- Run | Scr Mat Min Mat Min Exi Min Mat Fac Turns Passed 7115 | 86 1304 1134 2144 984 839 64 484 76 Spaces Moved 3526 | 48 647 601 980 525 458 22 203 42 Core 2 | 2 . . . . . . . . Treads 3524 | 46 647 601 980 525 458 22 203 42 Legs . | . . . . . . . . . Wheels . | . . . . . . . . . Hover . | . . . . . . . . . Flight . | . . . . . . . . . Fastest Speed 50 | 50 160 180 180 172 172 192 192 175 Average Speed 177 | 155 170 180 180 177 174 192 192 175 Slowest Speed 220 | 160 180 180 220 180 192 192 192 175 Overloaded Moves . | . . . . . . . . . Propulsion Burnouts . | . . . . . . . . . Robots Hopped . | . . . . . . . . . Cave-ins Triggered . | . . . . . . . . . Exploration Rate (%) 54 | 6 89 99 93 89 71 5 32 3 Regions Visited 8 Branch Regions 4 Pre-discovered Areas 3 | . . 1 . 1 1 . . . Known Exits Taken 1 | . . . . . . . 1 . Unknown Exits Taken 7 | 1 1 1 1 1 1 1 . . Scrap Searched 4 | . . 1 . 2 . 1 . . Spaces Dug 13 | . . . 10 . . . 3 . Terrain Destroyed 13 | . . . 10 . . . 3 . Melee 3 | . . . . . . . 3 . Projectile . | . . . . . . . . . AOE 10 | . . . 10 . . . . . Terrain Rammed . | . . . . . . . . . Walls Destroyed . | . . . . . . . . . Machines Disabled . | . . . . . . . . . Actions | -11 -10 -10 -9 -9 -9 -8 -8 -7 --------- Run | Scr Mat Min Mat Min Exi Min Mat Fac Total 4104 | 55 752 656 1225 572 512 29 259 44 Wait 175 | . 30 38 72 3 . . 32 . Move 3518 | 47 646 600 979 524 457 21 202 42 Hop . | . . . . . . . . . Pick Up 97 | 1 11 11 27 18 27 . 2 . Fast Attach 23 | 6 2 . 11 2 2 . . . Attach 15 | . . . 8 3 . . 2 2 Detach 1 | . . . . 1 . . . . Swap 20 | . 4 . 12 2 . . 2 . Drop 94 | . 4 6 44 14 26 . . . Fire 158 | 1 55 1 72 5 . 8 16 . Melee 3 | . . . . . . . 3 . Ram . | . . . . . . . . . Kick . | . . . . . . . . . Crush . | . . . . . . . . . Escape Stasis . | . . . . . . . . . Rewire . | . . . . . . . . . Trap . | . . . . . . . . . Miscellaneous . | . . . . . . . . . Route ------- -11/Scrapyard -10/Materials (discovered 4 exits: *Mat x3 / *Min) -10/Mines (discovered 2 exits: *Mat x2) -9/Materials (discovered 4 exits: *Mat x3 / *Min) -9/Mines (discovered 3 exits: *Mat / *Exi / *Zio) -9/Exiles -8/Mines -8/Materials (discovered 2 exits: *Fac x2) -7/Factory History --------- Turn | Location | Event 2 | -11/Scrapyard | Met Revision 17 50 | -11/Scrapyard | Discovered new exit (range 15) 87 | -11/Scrapyard | Entered Materials 301 | -10/Materials | Build established: Mutant 497 | -10/Materials | Discovered new exit (range 10) 575 | -10/Materials | Discovered new exit (range 16) 621 | -10/Materials | Central database locked down 824 | -10/Materials | Discovered new exit (range 11) 1360 | -10/Materials | Discovered new exit (range 8) 1391 | -10/Materials | Entered Mines 1400 | -10/Mines | Met a Derelict who couldn't figure out how to use a Trap Extractor 1741 | -10/Mines | Assembled infested the area 1746 | -10/Mines | Assisted by a Guerilla fighting off Assembled 1837 | -10/Mines | A weapon hastily lodged in a ceiling crevice suddenly fell to the ground 1876 | -10/Mines | Learned location of Mines (-8) 1878 | -10/Mines | Assisted by bots powering up and referring to "LRC-V3" 1934 | -10/Mines | Discovered new exit (range 5) 2079 | -10/Mines | Received a Rocket Launcher from a helpful Derelict 2086 | -10/Mines | Discovered new exit (range 10) 2106 | -10/Mines | Joined a pair of Derelicts in attacking an 0b10 outpost 2525 | -10/Mines | Entered Materials 2525 | -9/Materials | Accompanied by 3 allies 2525 | -9/Materials | Evolved 2 slots: Utility x1, Weapon x1 2814 | -9/Materials | Build established: Tank 2832 | -9/Materials | Discovered new exit (range 10) 3599 | -9/Materials | Discovered new exit (range 13) 3921 | -9/Materials | Discovered new exit (range 16) 4588 | -9/Materials | Discovered new exit (range 8) 4669 | -9/Materials | Entered Mines 4745 | -9/Mines | A Derelict revealed a hidden shortcut to a safe place 4763 | -9/Mines | Identified exit to Zion 4945 | -9/Mines | Learned Materials emergency access door positions 5098 | -9/Mines | Found a damaged Exp. Sensor Array with a note attached 5106 | -9/Mines | Found Prototype Device 5191 | -9/Mines | Learned 4 Materials zone layouts 5325 | -9/Mines | Discovered new exit (range 5) 5340 | -9/Mines | Met a Derelict shopkeep closing up shop 5434 | -9/Mines | Learned location of Storage (-7) 5493 | -9/Mines | Deemed a non-threat by the Exiles lab entrance 5495 | -9/Mines | Discovered new exit (range 5) 5653 | -9/Mines | Entered Exiles 5653 | -9/Exiles | Accompanied by 1 ally 5683 | -9/Exiles | Led the pair of lost Derelicts to a safe place 5693 | -9/Exiles | Met 8R-AWN 5724 | -9/Exiles | Met EX-HEX 5798 | -9/Exiles | Met EX-DEC 5807 | -9/Exiles | Learned location of Zion (-7) 5860 | -9/Exiles | Build established: Hauler-Gunner 5995 | -9/Exiles | Discovered new exit (range 14) 6157 | -9/Exiles | Met EX-BIN 6176 | -9/Exiles | Aligned with FarCom system 6177 | -9/Exiles | Given EX-Vault access code 6217 | -9/Exiles | Opened EX-Vault 6225 | -9/Exiles | Found Chronowheel 6232 | -9/Exiles | Found Gui. Plasma Cannon 6234 | -9/Exiles | Found Lightpack 2.0 6270 | -9/Exiles | Warned to stay clear of 0b10 Research branches 6290 | -9/Exiles | Exiles lab attacked by MAIN.C 6321 | -9/Exiles | Build established: Gunner 6492 | -9/Exiles | Stole three prototypes: Lightpack 2.0, Chronowheel, Gui. Plasma Cannon 6492 | -9/Exiles | Entered Mines 6546 | -8/Mines | Discovered new exit (range 5) 6556 | -8/Mines | Entered Materials 6556 | -8/Materials | Evolved 2 slots: Utility x2 6557 | -8/Materials | Identified exit to Factory 7005 | -8/Materials | Discovered exit to Factory (range 9) 7017 | -8/Materials | Build established: Hauler-Skirmisher 7040 | -8/Materials | Entered Factory 7040 | -7/Factory | Evolved 2 slots: Propulsion x1, Weapon x1 7042 | -7/Factory | FarCom data flow suspended 7116 | -7/Factory | Self-destructed Last Messages --------------- Awaiting botnet instructions. 06921_ K-01 Serf collects debris. 06944_ Penetrated by Slug. 06952_ H-55 Commando destroyed. 06960_ R-06 Scavenger collects Carbon-fiber Leg. 06963_ R-06 Scavenger collects Targeting Computer. 06967_ R-06 Scavenger collects Carbon-fiber Leg. 06978_ Acquired 45 matter. 07005_ EXIT=FOUND: FACTORY 07011_ K-01 Serf collects debris. PARAMETERS=PROPULSION_1,WEAPON_1 LOCATION=FACTORY GOAL=ESCAPE 07040_ Receiving FarCom transmissions... 07042_ FARCOM_MSG: Not cool, anonymous tester bot. We've taken inventory and discovered your thievery. Let's see how you like having parts stolen! 07042_ FarCom data flow suspended. 07087_ K-01 Serf collects debris. 07109_ Connecting with Garrison Access... Map ----- +----------------------------------------------------+ | ?????????????????????????????????????????????????? | | ?????????????????????????????????????????????????? | | ?????????????????????????????????????????????????? | | ?????????????????????????????????????????????????? | | ?????????????????????????????????????????????????? | | ?????????????????????????????????????????????????? | | ?????????????????????????????????????????????????? | | ?????????????????????????????????????????????????? | | ?????????????????????????????????????????????????? | | ?????????????????????????????????????????????????? | | ?????????????????????????????????????????????????? | | ?????????????????????????????????????????????????? | | ????????????????????????????????#????????????????? | | ??????????????????????????????? #????????????????? | | ??????????????????????????????? #????????????????? | | ???????????????????????########k#####????????????? | | ???????????????????????# #????????????? | | ???????????????????????# #????????????? | | ???????????????????????# =! +????????????? | | ???????????????????????# " " == #????????????? | | ???????????????????????# ""G"" #????????????? | | ???????????????????????# #????????????? | | ?????????? ######### #????????????? | | ?????????? #????????????? | | ?????????? #????????????? | | ?????????? """ =@ #????????????? | | ???????????? """ == ######+#????????????? | | ???????????? """ = #?? ????????????? | | ????????????????# t #?? ?????????????? | | ????????????????# """ """ #? """ ""???????????? | | ????????????????# """ """ #? """ """??????????? | | ????????????????# """ """ # """ """ #??????? | | ????????????????# # ????????? | | ????????????????# """ """ + """ ??????????? | | ????????????????# """ """ # """ ??????????? | | ????????????????# """ """ # """ ???????????? | | ????????????????# #? //???????????? | | ????????????????# """ !! #? //???????????? | | ??????????????????? """ !! #?? ///??????????? | | ????????????????# """ ! ##########??????????? | | ????????????????# """#????????????????? | | ????????????????# """ """ """#????????????????? | | ????????????????# """ """ R"#????????????????? | | ????????????????# """ """ """#????????????????? | | ????????????? "" #????????????????? | | ??????????????? """ """ ####????????????????? | | ?????????????? """ """ #???????????????????? | | ????????????? """ """ #???????????????????? | | ????????????? #???????????????????? | | ????????????? #???????????????????? | +----------------------------------------------------+ Best States ------------- Heat Dissipation 34 Energy Generation 14 Energy Capacity 280 Matter Stores 300 Matter Capacity 300 Sight Range 16 Terrain Scan Density 10 Armor Coverage 225 Evasion (%) 40 Recoil Reduction 3 Kinecelleration 30 Item Schematics ----------------- None Robot Schematics ------------------ None Fabricated ------------ Nothing Alien Tech Used ----------------- None Achievements -------------- None Challenges ------------ None Game ------ Seed GreatNeutrinoMinigun Manual? 0 Play Time 00:27:33 Cumulative 99.0 hours Start 2021.08.12 @ 16:22:51 End 2021.08.12 @ 16:52:22 Sessions 1 Manual Loads 0 Difficulty Rogue Special Mode None Game No. 168 Rogue 156 Adventurer 4 Explorer 8 Win Type - Total 7 Types 6/0/0/1/0/0/0/0/0 Lore% 61 Gallery% 78 Achievement% 62 Wizard Run 0 Options --------- ASCII 0 Keyboard 1 Movement Numpad Keybinds 0 Fullscreen 1 Font 18/SmallcapsGlow Map View 76x50 Tactical HUD 1 Map Filters NONE Filters NONE Steam 1 RUN: 15df63ea-0d87-44cb-9658-78f4a677c22e